fUSD/lending_fUSD_20260605
["ID","MTS","AMOUNT","RATE_DAILY","PERIOD"]
[424195114,1780642809000,-5000.0,0.0001048,2]
[424195115,1780642811000,-5000.0,0.0001048,2]
[424195116,1780642813000,-5000.0,0.0001048,2]
[424195122,1780642848000,-3364.48762948,0.0001048,2]
[424195121,1780642848000,-464.61166749,0.00010479,2]
[424195120,1780642848000,-500.0,0.00010479,2]
[424195119,1780642848000,-218.49107078,0.00010479,2]
[424195117,1780642848000,-179.61365926,0.0001047,2]
[424195118,1780642848000,-272.79597299,0.00010479,2]
[424195123,1780642856000,-271.46835976,0.00010438,2]
[424195124,1780642856000,-4728.53164024,0.0001048,2]
[424195125,1780642890000,-323.11658767,0.00010446,2]
[424195126,1780642890000,-222.20324237,0.00010479,2]
[424195127,1780642890000,-414.36460911,0.00010479,2]
[424195128,1780642891000,-4040.31556085,0.0001048,2]
[424195130,1780642930000,-548.74165168,0.0001048,2]
[424195131,1780642944000,-548.74165168,0.0001048,2]
[424195132,1780642945000,-548.74165168,0.00010479,2]
[424195133,1780642945000,-4451.25834832,0.0001048,2]
[424195134,1780642960000,-626.70190374,0.0001048,2]
[424195136,1780642978000,-626.70190374,0.00010479,2]
[424195135,1780642978000,-626.70190374,0.0001048,2]
[424195137,1780642978000,-4373.29809626,0.0001048,2]
[424195138,1780642979000,150.0,0.00030137,120]
[424195139,1780642993000,-14848.79757395,0.0001048,2]
[424195143,1780643009000,-1733.63,0.0001048,2]
[424195144,1780643009000,-215.41105844,0.00010462,2]
[424195145,1780643009000,-4784.58894156,0.0001048,2]
[424195141,1780643009000,-2766.37,9.9e-05,2]
[424195140,1780643009000,-500.0,9.926e-05,2]
[424195142,1780643009000,-500.0,9.926e-05,2]
[424195146,1780643025000,-500.0,0.0001027,2]
[424195147,1780643025000,-2409.381,0.0001027,2]
[424195150,1780643025000,-5000.0,0.0001048,2]
[424195149,1780643025000,-2412.233,0.0001048,2]
[424195151,1780643025000,-5000.0,0.0001048,2]
[424195148,1780643025000,-178.386,0.0001027,2]
[424195152,1780643039000,-1676.31150095,0.0001048,2]
[424195153,1780643058000,-1676.31150095,0.0001048,2]
[424195154,1780643073000,-663.83414893,0.00010479,2]
[424195155,1780643085000,-336.16585107,0.00010479,2]
[424195157,1780643085000,-4473.99429684,0.0001048,2]
[424195156,1780643085000,-189.83985209,0.00010479,2]
[424195159,1780643086000,-5000.0,0.0001048,2]
[424195158,1780643086000,-5000.0,0.0001048,2]
[424195160,1780643087000,-5000.0,0.0001048,2]
[424195161,1780643088000,-5000.0,0.0001048,2]
[424195162,1780643089000,-5000.0,0.0001048,2]
[424195163,1780643090000,-5000.0,0.0001048,2]
[424195164,1780643091000,-5000.0,0.0001048,2]
[424195165,1780643092000,-5000.0,0.0001048,2]
[424195166,1780643094000,-5000.0,0.0001048,2]
[424195169,1780643117000,-1200.0,0.00010479,2]
[424195170,1780643117000,-2619.0210935,0.0001048,2]
[424195167,1780643117000,-180.9789065,0.00010471,2]
[424195168,1780643117000,-1000.0,0.00010479,2]
[424195171,1780643118000,-5000.0,0.0001048,2]
[424195172,1780643125000,-5000.0,0.0001048,2]
[424195174,1780643126000,-5000.0,0.0001048,2]
[424195173,1780643126000,-5000.0,0.0001048,2]
[424195176,1780643127000,-5000.0,0.0001048,2]
[424195175,1780643127000,-5000.0,0.0001048,2]
[424195178,1780643128000,-5000.0,0.0001048,2]
[424195177,1780643128000,-5000.0,0.0001048,2]
[424195179,1780643130000,-5000.0,0.0001048,2]
[424195180,1780643179000,164.48382561,0.00010479,7]
[424195182,1780643185000,-4850.0,0.0001048,2]
[424195181,1780643185000,-150.0,0.00010479,2]
[424195183,1780643220000,-5000.0,0.0001048,2]
[424195184,1780643221000,-5000.0,0.0001048,2]
[424195185,1780643222000,-5000.0,0.0001048,2]
[424195186,1780643223000,-5000.0,0.0001048,2]
[424195187,1780643224000,-5000.0,0.0001048,2]
[424195188,1780643225000,-5000.0,0.0001048,2]
[424195189,1780643226000,-5000.0,0.0001048,2]
[424195190,1780643227000,-5000.0,0.0001048,2]
[424195191,1780643228000,-5000.0,0.0001048,2]
[424195194,1780643280000,-500.0,8.658e-05,2]
[424195195,1780643280000,-500.0,9.571e-05,2]
[424195193,1780643280000,-506.58263535,7.744e-05,2]
[424195198,1780643280000,-2822.5175472,0.0001048,2]
[424195197,1780643280000,-500.0,0.00010479,2]
[424195196,1780643280000,-170.89981745,0.00010479,2]
[424195199,1780643282000,-5000.0,0.0001048,2]
[424195200,1780643305000,-5000.0,0.0001048,2]
[424195201,1780643306000,-5000.0,0.0001048,2]
[424195203,1780643307000,-5000.0,0.0001048,2]
[424195202,1780643307000,-5000.0,0.0001048,2]
[424195204,1780643308000,-5000.0,0.0001048,2]
[424195206,1780643310000,-5000.0,0.0001048,2]
[424195205,1780643310000,-5000.0,0.0001048,2]
[424195208,1780643311000,-4500.0,0.0001048,2]
[424195207,1780643311000,-500.0,0.00010479,2]
[424195213,1780643340000,-3207.58,0.0001048,2]
[424195211,1780643340000,-500.0,0.00010479,2]
[424195212,1780643340000,-500.0,0.00010479,2]
[424195210,1780643340000,-792.42,9.841e-05,2]
[424195214,1780643341000,2000.0,0.00030136,120]
[424195217,1780643351000,-4600.0,0.0001048,2]
[424195216,1780643351000,-150.0,0.00010479,2]
[424195215,1780643351000,-250.0,0.00010479,2]
[424195219,1780643352000,-5000.0,0.0001048,2]
[424195218,1780643352000,2443.0,0.00030137,120]
[424195220,1780643354000,-5000.0,0.0001048,2]
[424195221,1780643371000,6500.0,0.00011493,5]
[424195224,1780643394000,-2265.5825635,0.0001038,2]
[424195223,1780643394000,-593.40734655,9.68e-05,2]
[424195222,1780643394000,-433.01008995,9.68e-05,2]
[424195227,1780643432000,-225.13599131,0.0001037,2]
[424195228,1780643432000,-131.31351175,0.00010379,2]
[424195231,1780643432000,-302.77030002,0.0001038,2]
[424195233,1780643432000,-1225.10721475,0.0001038,2]
[424195232,1780643432000,-136506.15593885,0.0001038,2]
[424195229,1780643432000,-1068.68648825,0.00010379,2]
[424195234,1780643432000,-930.70635496,0.0001038,2]
[424195235,1780643432000,-444.0,0.0001038,2]
[424195236,1780643432000,-735.95364504,0.0001038,2]
[424195237,1780643432000,-18191.60070677,0.0001038,2]
[424195238,1780643432000,-1507.28120465,0.0001038,2]
[424195239,1780643432000,-808.4534481,0.0001038,2]
[424195230,1780643432000,-1093.5431077,0.0001038,2]
[424195256,1780643438000,-618.6790189,0.0001038,2]
[424195257,1780643438000,-534.4486427,0.0001038,2]
[424195258,1780643438000,-7541.88636004,0.0001038,2]
[424195255,1780643438000,-1158.67285135,0.0001038,2]
[424195259,1780643438000,-1428.77227403,0.0001038,2]
[424195260,1780643438000,-2340.14564988,0.0001038,2]
[424195261,1780643438000,-448.0,0.0001038,2]
[424195264,1780643438000,-2093.68970089,0.0001038,2]
[424195263,1780643438000,-418.98263072,0.0001038,2]
[424195265,1780643438000,-595.75026014,0.0001038,2]
[424195266,1780643438000,-5459.81390079,0.0001038,2]
[424195267,1780643438000,-3892.53075856,0.0001038,2]
[424195268,1780643438000,-14078.95110786,0.0001038,2]
[424195269,1780643438000,-983.744131,0.0001038,2]
[424195262,1780643438000,-1546.575,0.0001038,2]
[424195327,1780643441000,-69315.73126432,0.0001038,2]
[424195325,1780643441000,-0.05777064,0.0001038,2]
[424195326,1780643441000,-730.1,0.0001038,2]
[424195328,1780643441000,-2802.49591157,0.0001038,2]
[424195332,1780643441000,-561.22993896,0.0001038,2]
[424195331,1780643441000,-616.95700799,0.0001038,2]
[424195333,1780643441000,-262.27202436,0.0001038,2]
[424195329,1780643441000,-615.01,0.0001038,2]
[424195330,1780643441000,-328.4,0.0001038,2]
[424195374,1780643443000,-375.18789012,0.0001038,2]
[424195340,1780643443000,-1035.22499536,0.0001038,2]
[424195349,1780643443000,-1240.62215,0.0001038,2]
[424195351,1780643443000,-3486.87969532,0.0001038,2]
[424195366,1780643443000,-1547.49757862,0.0001038,2]
[424195368,1780643443000,-5384.59415269,0.0001038,2]
[424195370,1780643443000,-5403.39945202,0.0001038,2]
[424195369,1780643443000,-503.0,0.0001038,2]
[424195365,1780643443000,-1450.25785109,0.0001038,2]
[424195371,1780643443000,-5279.69174745,0.0001038,2]
[424195372,1780643443000,-168.98735292,0.0001038,2]
[424195376,1780643443000,-939.0,0.0001038,2]
[424195375,1780643443000,-713.11239565,0.0001038,2]
[424195373,1780643443000,-1296.13555851,0.0001038,2]
[424195367,1780643443000,-639.27802743,0.0001038,2]
[424195381,1780643446000,-1956.03401074,0.0001038,2]
[424195388,1780643446000,-602.39710029,0.0001038,2]
[424195383,1780643446000,-5071.59433577,0.0001038,2]
[424195382,1780643446000,-28840.09911524,0.0001038,2]
[424195384,1780643446000,-1603.3,0.0001038,2]
[424195386,1780643446000,-307.23830169,0.0001038,2]
[424195387,1780643446000,-406.9138676,0.0001038,2]
[424195385,1780643446000,-458.38907396,0.0001038,2]
[424195391,1780643465000,-215.77576141,0.00010379,2]
[424195394,1780643466000,200.0,1.8e-06,2]
[424195393,1780643466000,200.0,5e-05,30]
[424195392,1780643466000,200.0,5e-05,30]
[424195395,1780643480000,1116.32662376,0.00010379,3]
[424195396,1780643489000,152.0,0.00010145,7]
[424195397,1780643490000,152.0,0.00010145,7]
[424195399,1780643491000,152.0,0.00010148,7]
[424195398,1780643491000,152.0,0.00010148,7]
[424195400,1780643492000,152.0,0.00010151,7]
[424195401,1780643493000,152.0,0.00020481,30]
[424195402,1780643494000,152.0,0.00020481,30]
[424195403,1780643519000,-151.0,0.00010377,2]
[424195404,1780643521000,-3848.78466739,0.0001038,2]
[424195405,1780643521000,-1990.35895394,0.0001038,2]
[424195406,1780643521000,-1959.37368856,0.0001038,2]
[424195407,1780643521000,-3848.78466739,0.0001038,2]
[424195409,1780643521000,-1978.28201566,0.0001038,2]
[424195408,1780643521000,-2850.55279567,0.0001038,2]
[424195411,1780643521000,-2259.36434777,0.0001038,2]
[424195415,1780643521000,-2157.9481267,0.0001038,2]
[424195414,1780643521000,-2139.33968627,0.0001038,2]
[424195410,1780643521000,-157.05673653,0.00010328,2]
[424195412,1780643521000,-2592.7443871,0.0001038,2]
[424195413,1780643521000,-1929.74571503,0.0001038,2]
[424195419,1780643522000,-185.01,0.0001038,2]
[424195418,1780643522000,-2039.09143708,0.0001038,2]
[424195417,1780643522000,-3210.80278351,0.0001038,2]
[424195416,1780643522000,-2290.52081462,0.0001038,2]
[424195421,1780643538000,440.68345645,0.00010479,7]
[424195420,1780643538000,480.68930187,0.00010479,7]
[424195422,1780643539000,480.68930187,0.00010689,7]
[424195423,1780643539000,440.68345645,0.00010689,7]
[424195424,1780643539000,480.68930187,0.00011003,7]
[424195425,1780643540000,440.68345645,0.00011003,7]
[424195428,1780643541000,480.6893019,0.00011736,7]
[424195427,1780643541000,440.68345645,0.00011317,7]
[424195426,1780643541000,480.68930187,0.00011317,7]
[424195429,1780643542000,440.68345646,0.00011736,7]
[424195430,1780643573000,-380.41144562,9.58e-05,2]
[424195431,1780643589000,-380.41144562,9.579e-05,2]
[424195432,1780643604000,-500.0,9.579e-05,2]
[424195433,1780643621000,-500.0,9.579e-05,2]
[424195434,1780643636000,-500.0,9.571e-05,2]
[424195435,1780643652000,-500.0,9.571e-05,2]
[424195436,1780643667000,-500.0,9.571e-05,2]
[424195437,1780643682000,-500.0,9.571e-05,2]
[424195443,1780643698000,-460.24302796,9.578e-05,2]
[424195441,1780643698000,-626.3,9.57e-05,2]
[424195442,1780643698000,-2563.98,9.571e-05,2]
[424195440,1780643698000,-500.0,9.57e-05,2]
[424195438,1780643698000,-349.47697204,9.57e-05,2]
[424195439,1780643698000,-500.0,9.57e-05,2]
[424195444,1780643699000,-2000.0,9.418e-05,2]
[424195447,1780643699000,-1143.99935512,9.579e-05,2]
[424195446,1780643699000,-500.0,9.579e-05,2]
[424195448,1780643699000,-616.24367284,9.579e-05,2]
[424195445,1780643699000,-739.75697204,9.578e-05,2]
[424195450,1780643700000,-757.42074643,9.58e-05,2]
[424195451,1780643700000,-1418.02601229,9.58e-05,2]
[424195449,1780643700000,-2824.55324128,9.579e-05,2]
[424195453,1780643701000,-215.77576141,9.587e-05,2]
[424195454,1780643701000,-286.66,9.634e-05,2]
[424195456,1780643701000,-500.0,9.853e-05,2]
[424195452,1780643701000,-128.88292568,9.58e-05,2]
[424195455,1780643701000,-154.0,9.675e-05,2]
[424195458,1780643701000,-179.36076923,9.953e-05,2]
[424195459,1780643701000,1200.0,9.578e-05,2]
[424195457,1780643701000,-250.0,9.953e-05,2]
[424195460,1780643702000,678.45,0.00030082,120]
[424195461,1780643715000,-534.52293763,9.57e-05,2]
[424195462,1780643715000,-534.52293763,9.57e-05,2]
[424195464,1780643715000,-534.52293763,9.57e-05,2]
[424195463,1780643715000,-534.52293763,9.57e-05,2]
[424195468,1780643715000,-534.52293763,9.57e-05,2]
[424195466,1780643715000,-534.52293763,9.57e-05,2]
[424195465,1780643715000,-534.52293763,9.57e-05,2]
[424195467,1780643715000,-534.52293763,9.57e-05,2]
[424195469,1780643715000,-534.52293763,9.57e-05,2]
[424195470,1780643715000,-189.29356133,9.57e-05,2]
[424195471,1780643716000,-345.2293763,9.57e-05,2]
[424195472,1780643716000,-534.52293763,9.57e-05,2]
[424195475,1780643716000,-534.52293763,9.57e-05,2]
[424195473,1780643716000,-534.52293763,9.57e-05,2]
[424195480,1780643716000,-378.58712266,9.57e-05,2]
[424195476,1780643716000,-534.52293763,9.57e-05,2]
[424195479,1780643716000,-534.52293763,9.57e-05,2]
[424195478,1780643716000,-534.52293763,9.57e-05,2]
[424195477,1780643716000,-534.52293763,9.57e-05,2]
[424195474,1780643716000,-534.52293763,9.57e-05,2]
[424195482,1780643717000,-534.52293763,9.57e-05,2]
[424195485,1780643717000,-534.52293763,9.57e-05,2]
[424195481,1780643717000,-155.93581497,9.57e-05,2]
[424195483,1780643717000,-534.52293763,9.57e-05,2]
[424195486,1780643717000,-534.52293763,9.57e-05,2]
[424195489,1780643717000,-534.52293763,9.57e-05,2]
[424195487,1780643717000,-534.52293763,9.57e-05,2]
[424195490,1780643717000,-534.52293763,9.57e-05,2]
[424195488,1780643717000,-534.52293763,9.57e-05,2]
[424195491,1780643717000,-33.35774636,9.57e-05,2]
[424195484,1780643717000,-534.52293763,9.57e-05,2]
[424195492,1780643720000,-501.16519127,9.57e-05,2]
[424195493,1780643720000,-534.52293763,9.57e-05,2]
[424195494,1780643720000,-534.52293763,9.57e-05,2]
[424195496,1780643720000,-534.52293763,9.57e-05,2]
[424195495,1780643720000,-534.52293763,9.57e-05,2]
[424195500,1780643720000,-534.52293763,9.57e-05,2]
[424195497,1780643720000,-534.52293763,9.57e-05,2]
[424195498,1780643720000,-534.52293763,9.57e-05,2]
[424195501,1780643720000,-222.65130769,9.57e-05,2]
[424195499,1780643720000,-534.52293763,9.57e-05,2]
[424195502,1780643721000,152.0,0.00010787,7]
[424195503,1780643721000,-311.87162994,9.57e-05,2]
[424195507,1780643721000,-534.52293763,9.57e-05,2]
[424195504,1780643721000,-534.52293763,9.57e-05,2]
[424195505,1780643721000,-534.52293763,9.57e-05,2]
[424195510,1780643721000,-534.52293763,9.57e-05,2]
[424195508,1780643721000,-534.52293763,9.57e-05,2]
[424195512,1780643721000,-411.94486902,9.57e-05,2]
[424195506,1780643721000,-534.52293763,9.57e-05,2]
[424195511,1780643721000,-534.52293763,9.57e-05,2]
[424195509,1780643721000,-534.52293763,9.57e-05,2]
[424195515,1780643732000,-342.89899376,9.57e-05,2]
[424195513,1780643732000,-122.57806861,9.57e-05,2]
[424195514,1780643732000,-534.52293763,9.57e-05,2]
[424195517,1780643736000,-534.52293763,9.57e-05,2]
[424195518,1780643736000,-273.8531185,9.57e-05,2]
[424195516,1780643736000,-191.62394387,9.57e-05,2]
[424195520,1780643737000,-534.52293763,9.57e-05,2]
[424195521,1780643737000,-204.80724324,9.57e-05,2]
[424195519,1780643737000,-260.66981913,9.57e-05,2]
[424195523,1780643738000,-534.52293763,9.57e-05,2]
[424195524,1780643738000,-135.76136798,9.57e-05,2]
[424195522,1780643738000,-329.71569439,9.57e-05,2]
[424195527,1780643739000,-66.71549272,9.57e-05,2]
[424195526,1780643739000,-534.52293763,9.57e-05,2]
[424195525,1780643739000,-398.76156965,9.57e-05,2]
[424195528,1780643740000,-1000.0,9.57e-05,2]
[424195529,1780643751000,-52.05344651,9.57e-05,2]
[424195530,1780643751000,-1033.26715349,9.57e-05,2]
[424195531,1780643758000,-310.0,9.879e-05,2]
[424195532,1780643797000,-1070.0,9.526e-05,2]
[424195534,1780643875000,-327.19390775,8.774e-05,2]
[424195533,1780643875000,-275.70934656,8.774e-05,2]
[424195537,1780643876000,455.50609225,9.328e-05,2]
[424195536,1780643876000,-212.3,9.358e-05,2]
[424195535,1780643876000,-150.0,9.287e-05,2]
[424195538,1780643890000,-275.70934656,9.24e-05,2]
[424195539,1780643906000,-324.8,9.24e-05,2]
[424195540,1780643922000,-248.25188704,8.462e-05,2]
[424195541,1780643938000,-248.25188704,8.462e-05,2]
[424195542,1780643954000,-165.25351787,8.462e-05,2]
[424195543,1780643978000,6516.0,0.00011493,5]
[424195544,1780644008000,-483.85897246,8.774e-05,2]
[424195546,1780644024000,152.0,0.00010503,7]
[424195545,1780644024000,152.0,0.00010503,7]
[424195547,1780644025000,152.0,0.00017058,30]
[424195548,1780644061000,-150.0,8.867e-05,2]
[424195549,1780644077000,185.31869701,9.213e-05,7]
[424195550,1780644077000,62.93319003,9.213e-05,7]
[424195552,1780644115000,-500.0,8.91e-05,2]
[424195553,1780644115000,40000.0,0.00030136,120]
[424195558,1780644130000,-324.8,8.91e-05,2]
[424195564,1780644200000,602.73,0.000301,120]
[424195570,1780644269000,820.12885323,0.00029799,120]
[424195571,1780644371000,-482.39,8.781e-05,2]
[424195572,1780644371000,-3736.798865,8.816e-05,2]
[424195582,1780644371000,-500.0,8.862e-05,2]
[424195574,1780644371000,-1200.0,8.861e-05,2]
[424195573,1780644371000,-169.0,8.861e-05,2]
[424195576,1780644371000,-251.93596117,8.862e-05,2]
[424195578,1780644371000,-500.0,8.862e-05,2]
[424195577,1780644371000,-347.40235177,8.862e-05,2]
[424195579,1780644371000,-500.0,8.862e-05,2]
[424195580,1780644371000,-500.0,8.862e-05,2]
[424195575,1780644371000,-331.46207981,8.862e-05,2]
[424195583,1780644371000,-500.0,8.862e-05,2]
[424195584,1780644371000,-500.0,8.862e-05,2]
[424195594,1780644371000,-500.0,8.862e-05,2]
[424195593,1780644371000,-500.0,8.862e-05,2]
[424195581,1780644371000,-500.0,8.862e-05,2]
[424195592,1780644371000,-500.0,8.862e-05,2]
[424195590,1780644371000,-500.0,8.862e-05,2]
[424195591,1780644371000,-500.0,8.862e-05,2]
[424195589,1780644371000,-500.0,8.862e-05,2]
[424195588,1780644371000,-500.0,8.862e-05,2]
[424195586,1780644371000,-500.0,8.862e-05,2]
[424195585,1780644371000,-500.0,8.862e-05,2]
[424195587,1780644371000,-500.0,8.862e-05,2]
[424195598,1780644372000,-500.0,8.862e-05,2]
[424195595,1780644372000,-500.0,8.862e-05,2]
[424195596,1780644372000,-500.0,8.862e-05,2]
[424195597,1780644372000,-500.0,8.862e-05,2]
[424195599,1780644372000,-500.0,8.862e-05,2]
[424195603,1780644372000,-500.0,8.862e-05,2]
[424195600,1780644372000,-500.0,8.862e-05,2]
[424195602,1780644372000,-500.0,8.862e-05,2]
[424195606,1780644372000,-396.40198,8.862e-05,2]
[424195605,1780644372000,-284.60876225,8.862e-05,2]
[424195604,1780644372000,-500.0,8.862e-05,2]
[424195601,1780644372000,-500.0,8.862e-05,2]
[424195614,1780644431000,799.0,0.0003013,120]
[424195623,1780644453000,489.41774902,0.0001,10]
[424195624,1780644498000,1000.0,0.0003,120]
[424195625,1780644541000,2000.0,0.00030136,120]
[424195626,1780644544000,424.73,0.00030082,120]
[424195632,1780644549000,-103.59802,8.862e-05,2]
[424195628,1780644549000,-150.0,8.861e-05,2]
[424195627,1780644549000,-206.9214002,8.634e-05,2]
[424195631,1780644549000,-334.49765978,8.862e-05,2]
[424195630,1780644549000,-472.93464492,8.861e-05,2]
[424195633,1780644549000,-500.0,8.862e-05,2]
[424195629,1780644549000,-500.0,8.861e-05,2]
[424195634,1780644549000,-500.0,8.862e-05,2]
[424195637,1780644549000,-500.0,8.862e-05,2]
[424195636,1780644549000,-500.0,8.862e-05,2]
[424195638,1780644549000,-500.0,8.862e-05,2]
[424195639,1780644549000,-500.0,8.862e-05,2]
[424195635,1780644549000,-500.0,8.862e-05,2]
[424195640,1780644549000,-156.29768062,8.862e-05,2]
[424195641,1780644586000,6125.0,0.00011493,5]
[424195642,1780644629000,338.0,0.0003,120]
[424195664,1780644631000,-2200.92460491,8.852e-05,2]
[424195663,1780644631000,-1530.37,8.843e-05,2]
[424195668,1780644631000,-500.0,8.861e-05,2]
[424195666,1780644631000,-500.0,8.861e-05,2]
[424195667,1780644631000,-500.0,8.861e-05,2]
[424195672,1780644631000,-500.0,8.861e-05,2]
[424195662,1780644631000,-2000.0,8.776e-05,2]
[424195670,1780644631000,-213.89488974,8.861e-05,2]
[424195665,1780644631000,-169.11785819,8.852e-05,2]
[424195671,1780644631000,-282.95713819,8.861e-05,2]
[424195681,1780644631000,-500.0,8.862e-05,2]
[424195682,1780644631000,-500.0,8.862e-05,2]
[424195674,1780644631000,-500.0,8.861e-05,2]
[424195685,1780644631000,-769.44835429,8.862e-05,2]
[424195661,1780644631000,-458.88921959,8.633e-05,2]
[424195669,1780644631000,-500.0,8.861e-05,2]
[424195659,1780644631000,-500.0,8.633e-05,2]
[424195648,1780644631000,-150.0,8.633e-05,2]
[424195656,1780644631000,-317.04023928,8.633e-05,2]
[424195677,1780644631000,-500.0,8.862e-05,2]
[424195643,1780644631000,-1200.0,8.632e-05,2]
[424195646,1780644631000,-150.0,8.633e-05,2]
[424195644,1780644631000,-150.0,8.632e-05,2]
[424195647,1780644631000,-150.0,8.633e-05,2]
[424195645,1780644631000,-150.0,8.633e-05,2]
[424195660,1780644631000,-500.0,8.633e-05,2]
[424195649,1780644631000,-150.0,8.633e-05,2]
[424195650,1780644631000,-150.0,8.633e-05,2]
[424195651,1780644631000,-176.27387422,8.633e-05,2]
[424195653,1780644631000,-500.0,8.633e-05,2]
[424195654,1780644631000,-500.0,8.633e-05,2]
[424195658,1780644631000,-500.0,8.633e-05,2]
[424195652,1780644631000,-183.29088506,8.633e-05,2]
[424195655,1780644631000,-182.95976072,8.633e-05,2]
[424195657,1780644631000,-277.44313622,8.633e-05,2]
[424195673,1780644631000,-626.39910404,8.861e-05,2]
[424195707,1780644631000,-769.44835429,8.862e-05,2]
[424195676,1780644631000,-343.70231938,8.862e-05,2]
[424195714,1780644631000,-769.44835429,8.862e-05,2]
[424195716,1780644631000,-769.44835429,8.862e-05,2]
[424195717,1780644631000,-769.44835429,8.862e-05,2]
[424195721,1780644631000,-769.44835429,8.862e-05,2]
[424195719,1780644631000,-769.44835429,8.862e-05,2]
[424195718,1780644631000,-769.44835429,8.862e-05,2]
[424195720,1780644631000,-769.44835429,8.862e-05,2]
[424195709,1780644631000,-769.44835429,8.862e-05,2]
[424195711,1780644631000,-769.44835429,8.862e-05,2]
[424195722,1780644631000,-769.44835429,8.862e-05,2]
[424195724,1780644631000,-769.44835429,8.862e-05,2]
[424195725,1780644631000,-769.44835429,8.862e-05,2]
[424195727,1780644631000,-769.44835429,8.862e-05,2]
[424195684,1780644631000,-769.44835429,8.862e-05,2]
[424195726,1780644631000,-769.44835429,8.862e-05,2]
[424195712,1780644631000,-769.44835429,8.862e-05,2]
[424195699,1780644631000,-769.44835429,8.862e-05,2]
[424195723,1780644631000,-769.44835429,8.862e-05,2]
[424195688,1780644631000,-769.44835429,8.862e-05,2]
[424195683,1780644631000,-500.0,8.862e-05,2]
[424195705,1780644631000,-769.44835429,8.862e-05,2]
[424195679,1780644631000,-500.0,8.862e-05,2]
[424195680,1780644631000,-500.0,8.862e-05,2]
[424195686,1780644631000,-769.44835429,8.862e-05,2]
[424195687,1780644631000,-769.44835429,8.862e-05,2]
[424195694,1780644631000,-769.44835429,8.862e-05,2]
[424195675,1780644631000,-271.00770342,8.862e-05,2]
[424195701,1780644631000,-769.44835429,8.862e-05,2]
[424195703,1780644631000,-769.44835429,8.862e-05,2]
[424195689,1780644631000,-769.44835429,8.862e-05,2]
[424195697,1780644631000,-769.44835429,8.862e-05,2]
[424195678,1780644631000,-500.0,8.862e-05,2]
[424195696,1780644631000,-769.44835429,8.862e-05,2]
[424195690,1780644631000,-769.44835429,8.862e-05,2]
[424195692,1780644631000,-769.44835429,8.862e-05,2]
[424195765,1780644632000,-686.0,9.299e-05,2]
[424195756,1780644632000,-686.0,9.299e-05,2]
[424195762,1780644632000,-686.0,9.299e-05,2]
[424195772,1780644632000,-689.96730033,9.299e-05,2]
[424195763,1780644632000,-686.0,9.299e-05,2]
[424195761,1780644632000,-686.0,9.299e-05,2]
[424195764,1780644632000,-686.0,9.299e-05,2]
[424195769,1780644632000,-686.0,9.299e-05,2]
[424195766,1780644632000,-686.0,9.299e-05,2]
[424195767,1780644632000,-686.0,9.299e-05,2]
[424195760,1780644632000,-686.0,9.299e-05,2]
[424195773,1780644632000,-150.0,9.299e-05,2]
[424195778,1780644632000,-150.0,9.299e-05,2]
[424195768,1780644632000,-686.0,9.299e-05,2]
[424195771,1780644632000,-686.0,9.299e-05,2]
[424195785,1780644632000,-1680.0,9.495e-05,2]
[424195775,1780644632000,-334.49765978,9.299e-05,2]
[424195776,1780644632000,-150.0,9.299e-05,2]
[424195774,1780644632000,-150.0,9.299e-05,2]
[424195777,1780644632000,-150.0,9.299e-05,2]
[424195780,1780644632000,-150.0,9.299e-05,2]
[424195786,1780644632000,-255.0,9.495e-05,2]
[424195781,1780644632000,-12409.88390775,9.328e-05,2]
[424195784,1780644632000,-19760.4967591,9.478e-05,2]
[424195759,1780644632000,-686.0,9.299e-05,2]
[424195779,1780644632000,-212.87970977,9.299e-05,2]
[424195770,1780644632000,-686.0,9.299e-05,2]
[424195749,1780644632000,-686.0,9.299e-05,2]
[424195740,1780644632000,-500.0,8.908e-05,2]
[424195757,1780644632000,-686.0,9.299e-05,2]
[424195783,1780644632000,-500.0,9.456e-05,2]
[424195734,1780644632000,-873.94134068,8.862e-05,2]
[424195735,1780644632000,-873.94134068,8.862e-05,2]
[424195733,1780644632000,-873.94134068,8.862e-05,2]
[424195728,1780644632000,-769.44835429,8.862e-05,2]
[424195730,1780644632000,-769.44835429,8.862e-05,2]
[424195732,1780644632000,-873.94134068,8.862e-05,2]